{"text_format":"1","workbook":"xlsx","n_sheets":13,"sheets":["Datos sitio","1, Aspectos generales","2, Identidad e Información","3, Estructura y navegación","4, Rotulado","5, Layout de la página","6, Entendibilidad y Faciliddad ","7, Control y Retoalimentación","8, Elementos multimedia","9, Búsqueda","10, Ayuda","Cálculo de % usabilidad","Valores"],"not_rendered":{"charts":0,"images":12,"macros":1,"external_links":0,"defined_names":6,"comments":0,"pivot_tables":0},"unopened":[],"bounds":{"document_bytes":16777216,"sheet_cells":100000,"rows_first":2000,"rows_last":500,"rows_between":2000,"halvings":0,"cell_chars":16384,"cell_head_chars":4096},"cells_cut":0,"cells_raw":0,"read":"whole","date_system":"1900"}

{"sheet":"Datos sitio","index":0,"n_rows":24,"n_cols":3,"rows_kept":24,"cut":false,"hidden":false,"merged":[]}
["Checklist para revisión heurística de usabilidad v.2",null,"2011-07-27"]
["basada en la tesis de  Mª del Carmen Suárez Torrente "]
["Sirius: Sistema de Evaluación de la Usabilidad Web Orientado al Usuario y basado en la Determinación de Tareas Críticas "]
[]
["Autor: Olga Carreras Montoto","(Usable y accesible)"]
["Artículo:  http://olgacarreras.blogspot.com/2011/07/sirius-nueva-sistema-para-la-evaluacion.html"]
[]
[]
["DATOS GENERALES DE LA EVALUACIÓN"]
["Evaluador"]
["Fecha de evaluación"]
["Nombre del sitio evaluado"]
["URL del sitio evaluado"]
["Tipo de sitio evaluado",null,"(nota: no admite la definición de sitio híbrido, ver pp. 162 de la tesis)"]
["Navegador con el que se revisa"]
["Versión el navegador"]
[]
[]
["Cómo usar esta Excel"]
[]
["1. Se recomienda leer primero el artículo dónde se explica el nuevo sistema de evaluación Sirius"]
["2. Rellenar los datos generales del sitio a evaluar (en esta pestaña)"]
["3. Evaluar los criterios de cada heurístico, uno por pestaña, según las indicaciones que se incluyen "]
["4. En la pestaña \"Cálculo de % de usabilidad\" se puede consultar la puntuación que recibe el sitio (pocentaje: 0-100) según la evaluación que se ha hecho de los diferentes criterios"]

{"sheet":"1, Aspectos generales","index":1,"n_rows":22,"n_cols":13,"rows_kept":22,"cut":false,"hidden":false,"merged":[[0,0,0,6]]}
["CRITERIOS DEL \"HEURÍSTICO ASPECTOS GENERALES\": Elementos relacionados con los objetivos del sitio, el look & feel, coherencia y nivel de actualización de contenidos. "]
["Código","Criterio","Valor","Relevancia *","Comentarios","Valor interno(vc)","Valor interno de relevancia (rc)","Factor de corrección (fc)","Valor parcial","Valor parcial 2"]
["AG.1","Objetivos del sitio web concretos y bien definidos",null,null,null,{"$f":"txtNum(C3)","v":""},{"$f":"txtRel(D3)","v":"0"},{"$f":"G3/'Cálculo de % usabilidad'!F5","v":{"$error":"#DIV/0!"}},{"$f":"H3*F3","v":{"$error":"#DIV/0!"}},{"$f":"H3*10","v":{"$error":"#DIV/0!"}}]
["AG.2","Contenidos o servicios ofrecidos precisos y completos ",null,null,null,{"$f":"txtNum(C4)","v":""},"0",{"$f":"G4/'Cálculo de % usabilidad'!F5","v":{"$error":"#DIV/0!"}},{"$f":"H4*F4","v":{"$error":"#DIV/0!"}},{"$f":"H4*10","v":{"$error":"#DIV/0!"}}]
["AG.3","Estructura general del sitio web orientada al usuario ",null,null,null,"","0",{"$f":"G5/'Cálculo de % usabilidad'!F5","v":{"$error":"#DIV/0!"}},{"$error":"#DIV/0!"},{"$error":"#DIV/0!"}]
["AG.4","Look & Feel general se corresponde con los objetivos, características, contenidos y servicios del sitio web",null,null,null,"","0",{"$f":"G6/'Cálculo de % usabilidad'!F5","v":{"$error":"#DIV/0!"}},{"$error":"#DIV/0!"},{"$error":"#DIV/0!"}]
["AG.5","Diseño general del sitio web reconocible ",null,null,null,"","0",{"$f":"G7/'Cálculo de % usabilidad'!F5","v":{"$error":"#DIV/0!"}},{"$error":"#DIV/0!"},{"$error":"#DIV/0!"}]
["AG.6","Diseño general del sitio web coherente",null,null,null,"","0",{"$f":"G8/'Cálculo de % usabilidad'!F5","v":{"$error":"#DIV/0!"}},{"$error":"#DIV/0!"},{"$error":"#DIV/0!"}]
["AG.7","Se utiliza el idioma del usuario",null,null,null,"","0",{"$f":"G9/'Cálculo de % usabilidad'!F5","v":{"$error":"#DIV/0!"}},{"$error":"#DIV/0!"},{"$error":"#DIV/0!"}]
["AG.8","Se da soporte a otro/s idioma/s ",null,null,null,"","0",{"$f":"G10/'Cálculo de % usabilidad'!F5","v":{"$error":"#DIV/0!"}},{"$error":"#DIV/0!"},{"$error":"#DIV/0!"}]
["AG.9","Traducción del sitio completa y correcta ",null,null,null,"","0",{"$f":"G11/'Cálculo de % usabilidad'!F5","v":{"$error":"#DIV/0!"}},{"$error":"#DIV/0!"},{"$error":"#DIV/0!"}]
["AG.10","Sitio web actualizado periódicamente",null,null,null,"","0",{"$f":"G12/'Cálculo de % usabilidad'!F5","v":{"$error":"#DIV/0!"}},{"$error":"#DIV/0!"},{"$error":"#DIV/0!"},"Núm.elementos evaluados",{"$f":"10-(COUNTIF(C3:C12,\"NA\")+COUNTBLANK(C3:C12))","v":0}," (no contabiliza ni los vacíos ni los NA)"]
[null,null,null,null,null,null,{"$f":"G3+G4+G5+G6+G7+G8+G9+G10+G11+G12","v":0}]
["Instrucciones",null,"Leyenda Valor"]
["1. Evalue cada criterio y rellene la columna \"Valor\" según la leyenda",null,0,"No se cumple en absoluto",null,"NEP","No se cumple en los enlaces principales"]
["2. Según el tipo de sitio indicado en la pestaña \"Datos del sitio\" rellene la columna \"Relevancia\"",null,10,"Se cumple totalmente",null,"NPP ","No se cumple en la página principal"]
["Debe seleccionar el valor según la tabla que se incluye más abajo (la excel no lo hace todavía automáticamente)",null,"NA","Criterio no aplicable en el sitio",null,"NPI","No se cumple en alguna página interior"]
["3. Puede indicar los comentarios que desee o bien su referencia a un documento Word",null,"NTS ","No se cumple en todo el sitio",null,"S ","Se cumple el criterio"]
["4. No modifique las columnas sombreadas en gris, son rellenados automáticamente para el cálculo final"]
[]
["*Relevancia"," NOTA, si el valor es NA no aplicar relevancia"]
["Se aplica el tipo de sitio definido en Datos del sitio según esta tabla (debería programarse para que el valor lo pusiera excel automáticamente)"]

{"sheet":"2, Identidad e Información","index":2,"n_rows":19,"n_cols":13,"rows_kept":19,"cut":false,"hidden":false,"merged":[]}
["CRITERIOS DEL \"IDENTIDAD E INFORMACIÓN\": Elementos relacionados con la identidad del sitio, la información proporcionada sobre el proveedor y la autoría de los contenidos. "]
["Código","Criterio","Valor","Relevancia *","Comentarios","Valor interno(vc)","Valor interno de relevancia (rc)","Factor de corrección (fc)","Valor parcial","Valor parcial 2"]
["II.1","Identidad o logotipo significativo, identificable y suficientemente visible",null,null,null,{"$f":"txtNum(C3)","v":""},{"$f":"txtRel(D3)","v":"0"},{"$f":"G3/'Cálculo de % usabilidad'!F5","v":{"$error":"#DIV/0!"}},{"$f":"H3*F3","v":{"$error":"#DIV/0!"}},{"$f":"H3*10","v":{"$error":"#DIV/0!"}}]
["II.2","Identidad del sitio en todas las páginas",null,null,null,{"$f":"txtNum(C4)","v":""},"0",{"$f":"G4/'Cálculo de % usabilidad'!F5","v":{"$error":"#DIV/0!"}},{"$f":"H4*F4","v":{"$error":"#DIV/0!"}},{"$f":"H4*10","v":{"$error":"#DIV/0!"}}]
["II.3","Eslogan o tagline adecuado al objetivo del sitio",null,null,null,"","0",{"$f":"G5/'Cálculo de % usabilidad'!F5","v":{"$error":"#DIV/0!"}},{"$error":"#DIV/0!"},{"$error":"#DIV/0!"}]
["II.4","Se ofrece información sobre el sitio web, empresa",null,null,null,"","0",{"$f":"G6/'Cálculo de % usabilidad'!F5","v":{"$error":"#DIV/0!"}},{"$error":"#DIV/0!"},{"$error":"#DIV/0!"}]
["II.5","Existen mecanismos de contacto",null,null,null,"","0",{"$f":"G7/'Cálculo de % usabilidad'!F5","v":{"$error":"#DIV/0!"}},{"$error":"#DIV/0!"},{"$error":"#DIV/0!"}]
["II.6","Se ofrece información sobre la protección de datos de carácter personal o los\nderechos de autor de los contenidos del sitio web",null,null,null,"","0",{"$f":"G8/'Cálculo de % usabilidad'!F5","v":{"$error":"#DIV/0!"}},{"$error":"#DIV/0!"},{"$error":"#DIV/0!"}]
["II.7","Se ofrece información sobre el autor, fuentes y fechas de creación y revisión\nen artículos, noticias, informes",null,null,null,"","0",{"$f":"G9/'Cálculo de % usabilidad'!F5","v":{"$error":"#DIV/0!"}},{"$error":"#DIV/0!"},{"$error":"#DIV/0!"},"Núm.elementos evaluados",{"$f":"7-(COUNTIF(C3:C9,\"NA\")+COUNTBLANK(C3:C9))","v":0}," (no contabiliza ni los vacíos ni los NA)"]
[null,null,null,null,null,null,{"$f":"G3+G4+G5+G6+G7+G8+G9","v":0}]
["Instrucciones",null,"Leyenda Valor"]
["1. Evalue cada criterio y rellene la columna \"Valor\" según la leyenda",null,0,"No se cumple en absoluto",null,"NEP","No se cumple en los enlaces principales"]
["2. Según el tipo de sitio indicado en la pestaña \"Datos del sitio\" rellene la columna \"Relevancia\"",null,10,"Se cumple totalmente",null,"NPP ","No se cumple en la página principal"]
["Debe seleccionar el valor según la tabla que se incluye más abajo (la excel no lo hace todavía automáticamente)",null,"NA","Criterio no aplicable en el sitio",null,"NPI","No se cumple en alguna página interior"]
["3. Puede indicar los comentarios que desee o bien su referencia a un documento Word",null,"NTS ","No se cumple en todo el sitio",null,"S ","Se cumple el criterio"]
["4. No modifique las columnas sombreadas en gris, son rellenados automáticamente para el cálculo final"]
[]
["*Relevancia"]
["Se aplica el tipo de sitio definido en Datos del sitio según esta tabla (debería programarse para que el valor lo pusiera excel automáticamente)"]

{"sheet":"3, Estructura y navegación","index":3,"n_rows":26,"n_cols":13,"rows_kept":26,"cut":false,"hidden":false,"merged":[]}
["CRITERIOS DEL \"ESTRUCTURA Y NAVEGACIÓN\": Elementos relacionados con la idoneidad de la arquitectura de la información y la navegación del sitio."]
["Código","Criterio","Valor","Relevancia *","Comentarios","Valor interno(vc)","Valor interno de relevancia (rc)","Factor de corrección (fc)","Valor parcial","Valor parcial 2"]
["EN.1","Se ha evitado pantalla de bienvenida",null,null,null,{"$f":"txtNum(C3)","v":""},{"$f":"txtRel(D3)","v":"0"},{"$f":"G3/'Cálculo de % usabilidad'!F5","v":{"$error":"#DIV/0!"}},{"$f":"H3*F3","v":{"$error":"#DIV/0!"}},{"$f":"H3*10","v":{"$error":"#DIV/0!"}}]
["EN.2","Estructura de organización y navegación adecuada",null,null,null,{"$f":"txtNum(C4)","v":""},"0",{"$f":"G4/'Cálculo de % usabilidad'!F5","v":{"$error":"#DIV/0!"}},{"$f":"H4*F4","v":{"$error":"#DIV/0!"}},{"$f":"H4*10","v":{"$error":"#DIV/0!"}}]
["EN.3","Organización de elementos consistente con convenciones",null,null,null,"","0",{"$f":"G5/'Cálculo de % usabilidad'!F5","v":{"$error":"#DIV/0!"}},{"$error":"#DIV/0!"},{"$error":"#DIV/0!"}]
["EN.4","Control del número de elementos y de términos por elemento en\nlos menús de navegación",null,null,null,"","0",{"$f":"G6/'Cálculo de % usabilidad'!F5","v":{"$error":"#DIV/0!"}},{"$error":"#DIV/0!"},{"$error":"#DIV/0!"}]
["EN.5","Equilibrio entre profundidad y anchura en el caso de estructura\njerárquica",null,null,null,"","0",{"$f":"G7/'Cálculo de % usabilidad'!F5","v":{"$error":"#DIV/0!"}},{"$error":"#DIV/0!"},{"$error":"#DIV/0!"}]
["EN.6","Enlaces fácilmente reconocibles como tales",null,null,null,"","0",{"$f":"G8/'Cálculo de % usabilidad'!F5","v":{"$error":"#DIV/0!"}},{"$error":"#DIV/0!"},{"$error":"#DIV/0!"}]
["EN.7","La caracterización de los enlaces indica su estado (visitados, activos)",null,null,null,"","0",{"$f":"G9/'Cálculo de % usabilidad'!F5","v":{"$error":"#DIV/0!"}},{"$error":"#DIV/0!"},{"$error":"#DIV/0!"}]
["EN.8","No hay redundancia de enlaces",null,null,null,"","0",{"$f":"G10/'Cálculo de % usabilidad'!F5","v":{"$error":"#DIV/0!"}},{"$error":"#DIV/0!"},{"$error":"#DIV/0!"}]
["EN.9","No hay enlaces rotos",null,null,null,"","0",{"$f":"G11/'Cálculo de % usabilidad'!F5","v":{"$error":"#DIV/0!"}},{"$f":"H11*F11","v":{"$error":"#DIV/0!"}},{"$error":"#DIV/0!"}]
["EN.10","No hay enlaces que lleven a la misma página que se está visualizando",null,null,null,"","0",{"$f":"G12/'Cálculo de % usabilidad'!F5","v":{"$error":"#DIV/0!"}},{"$f":"H12*F12","v":{"$error":"#DIV/0!"}},{"$error":"#DIV/0!"}]
["EN.11","En las imágenes de enlace se indica el contenido al que se va a acceder",null,null,null,"",{"$f":"txtRel(D13)","v":"0"},{"$f":"G13/'Cálculo de % usabilidad'!F5","v":{"$error":"#DIV/0!"}},{"$error":"#DIV/0!"},{"$error":"#DIV/0!"}]
["EN.12","Existe un enlace para volver al inicio en cada página",null,null,null,"","0",{"$f":"G14/'Cálculo de % usabilidad'!F5","v":{"$error":"#DIV/0!"}},{"$error":"#DIV/0!"},{"$error":"#DIV/0!"}]
["EN.13","Existen elementos de navegación que orienten al usuario acerca de dónde está y cómo deshacer su navegación (ej: migas)\n",null,null,null,"","0",{"$f":"G15/'Cálculo de % usabilidad'!F5","v":{"$error":"#DIV/0!"}},{"$error":"#DIV/0!"},{"$error":"#DIV/0!"}]
["EN.14","Existe mapa del sitio para acceder directamente a los contenidos sin\nnavegar",null,null,null,"","0",{"$f":"G16/'Cálculo de % usabilidad'!F5","v":{"$error":"#DIV/0!"}},{"$error":"#DIV/0!"},{"$error":"#DIV/0!"},"Núm.elementos evaluados",{"$f":"14-(COUNTIF(C3:C16,\"NA\")+COUNTBLANK(C3:C16))","v":0}," (no contabiliza ni los vacíos ni los NA)"]
[null,null,null,null,null,null,{"$f":"G3+G4+G5+G6+G7+G8+G9+G10+G11+G12+G13+G14+G15+G16","v":0}]
["Instrucciones",null,"Leyenda Valor"]
["1. Evalue cada criterio y rellene la columna \"Valor\" según la leyenda",null,0,"No se cumple en absoluto",null,"NEP","No se cumple en los enlaces principales"]
["2. Según el tipo de sitio indicado en la pestaña \"Datos del sitio\" rellene la columna \"Relevancia\"",null,10,"Se cumple totalmente",null,"NPP ","No se cumple en la página principal"]
["Debe seleccionar el valor según la tabla que se incluye más abajo (la excel no lo hace todavía automáticamente)",null,"NA","Criterio no aplicable en el sitio",null,"NPI","No se cumple en alguna página interior"]
["3. Puede indicar los comentarios que desee o bien su referencia a un documento Word",null,"NTS ","No se cumple en todo el sitio",null,"S ","Se cumple el criterio"]
["4. No modifique las columnas sombreadas en gris, son rellenados automáticamente para el cálculo final"]
[]
["*Relevancia"]
["Se aplica el tipo de sitio definido en Datos del sitio según esta tabla (debería programarse para que el valor lo pusiera excel automáticamente)"]

{"sheet":"4, Rotulado","index":4,"n_rows":18,"n_cols":13,"rows_kept":18,"cut":false,"hidden":false,"merged":[]}
["CRITERIOS DEL \"ROTULADO\": Elementos relacionados con la significación, corrección y familiaridad del rotulado de los contenidos. "]
["Código","Criterio","Valor","Relevancia *","Comentarios","Valor interno(vc)","Valor interno de relevancia (rc)","Factor de corrección (fc)","Valor parcial","Valor parcial 2"]
["RO.1","Rótulos significativos",null,null,null,{"$f":"txtNum(C3)","v":""},{"$f":"txtRel(D3)","v":"0"},{"$f":"G3/'Cálculo de % usabilidad'!F5","v":{"$error":"#DIV/0!"}},{"$f":"H3*F3","v":{"$error":"#DIV/0!"}},{"$f":"H3*10","v":{"$error":"#DIV/0!"}}]
["RO.2","Sistema de rotulado controlado y preciso",null,null,null,{"$f":"txtNum(C4)","v":""},"0",{"$f":"G4/'Cálculo de % usabilidad'!F5","v":{"$error":"#DIV/0!"}},{"$f":"H4*F4","v":{"$error":"#DIV/0!"}},{"$f":"H4*10","v":{"$error":"#DIV/0!"}}]
["RO.3","Título de las páginas, correcto y planificado",null,null,null,"","0",{"$f":"G5/'Cálculo de % usabilidad'!F5","v":{"$error":"#DIV/0!"}},{"$error":"#DIV/0!"},{"$error":"#DIV/0!"}]
["RO.4","URL página principal correcta, clara y fácil de recordar",null,null,null,"","0",{"$f":"G6/'Cálculo de % usabilidad'!F5","v":{"$error":"#DIV/0!"}},{"$error":"#DIV/0!"},{"$error":"#DIV/0!"}]
["RO.5","URLs de páginas internas claras",null,null,null,"","0",{"$f":"G7/'Cálculo de % usabilidad'!F5","v":{"$error":"#DIV/0!"}},{"$error":"#DIV/0!"},{"$error":"#DIV/0!"}]
["RO.6","URLs de páginas internas permanentes",null,null,null,"","0",{"$f":"G8/'Cálculo de % usabilidad'!F5","v":{"$error":"#DIV/0!"}},{"$f":"H8*F8","v":{"$error":"#DIV/0!"}},{"$error":"#DIV/0!"},"Núm.elementos evaluados",{"$f":"6-(COUNTIF(C3:C8,\"NA\")+COUNTBLANK(C3:C8))","v":0}," (no contabiliza ni los vacíos ni los NA)"]
[null,null,null,null,null,null,{"$f":"G3+G4+G5+G6+G7+G8","v":0}]
["Instrucciones",null,"Leyenda Valor"]
["1. Evalue cada criterio y rellene la columna \"Valor\" según la leyenda",null,0,"No se cumple en absoluto",null,"NEP","No se cumple en los enlaces principales"]
["2. Según el tipo de sitio indicado en la pestaña \"Datos del sitio\" rellene la columna \"Relevancia\"",null,10,"Se cumple totalmente",null,"NPP ","No se cumple en la página principal"]
["Debe seleccionar el valor según la tabla que se incluye más abajo (la excel no lo hace todavía automáticamente)",null,"NA","Criterio no aplicable en el sitio",null,"NPI","No se cumple en alguna página interior"]
["3. Puede indicar los comentarios que desee o bien su referencia a un documento Word",null,"NTS ","No se cumple en todo el sitio",null,"S ","Se cumple el criterio"]
["4. No modifique las columnas sombreadas en gris, son rellenados automáticamente para el cálculo final"]
[]
["*Relevancia"]
["Se aplica el tipo de sitio definido en Datos del sitio según esta tabla (debería programarse para que el valor lo pusiera excel automáticamente)"]

{"sheet":"5, Layout de la página","index":5,"n_rows":22,"n_cols":13,"rows_kept":22,"cut":false,"hidden":false,"merged":[]}
["CRITERIOS DEL \"LAYOUT DE LA PÁGINA\": Elementos relacionados con la distribución y el aspecto de los elementos de navegación e información en la interfaz"]
["Código","Criterio","Valor","Relevancia *","Comentarios","Valor interno(vc)","Valor interno de relevancia (rc)","Factor de corrección (fc)","Valor parcial","Valor parcial 2"]
["LA.1","Se aprovechan las zonas de alta jerarquía informativa de la página para contenidos de mayor relevancia",null,null,null,{"$f":"txtNum(C3)","v":""},{"$f":"txtRel(D3)","v":"0"},{"$f":"G3/'Cálculo de % usabilidad'!F5","v":{"$error":"#DIV/0!"}},{"$f":"H3*F3","v":{"$error":"#DIV/0!"}},{"$f":"H3*10","v":{"$error":"#DIV/0!"}}]
["LA.2","Se ha evitado la sobrecarga informativa",null,null,null,{"$f":"txtNum(C4)","v":""},"0",{"$f":"G4/'Cálculo de % usabilidad'!F5","v":{"$error":"#DIV/0!"}},{"$f":"H4*F4","v":{"$error":"#DIV/0!"}},{"$f":"H4*10","v":{"$error":"#DIV/0!"}}]
["LA.3","Es una interfaz limpia, sin ruido visual",null,null,null,"","0",{"$f":"G5/'Cálculo de % usabilidad'!F5","v":{"$error":"#DIV/0!"}},{"$error":"#DIV/0!"},{"$error":"#DIV/0!"}]
["LA.4","Existen zonas en blanco entre los objetos informativos de la página\npara poder descansar la vista",null,null,null,"","0",{"$f":"G6/'Cálculo de % usabilidad'!F5","v":{"$error":"#DIV/0!"}},{"$error":"#DIV/0!"},{"$error":"#DIV/0!"}]
["LA.5","Uso correcto del espacio visual de la página",null,null,null,"","0",{"$f":"G7/'Cálculo de % usabilidad'!F5","v":{"$error":"#DIV/0!"}},{"$error":"#DIV/0!"},{"$error":"#DIV/0!"}]
["LA.6","Se utiliza correctamente la jerarquía visual para expresar las relaciones del tipo \"parte de\" entre los elementos de la página",null,null,null,"","0",{"$f":"G8/'Cálculo de % usabilidad'!F5","v":{"$error":"#DIV/0!"}},{"$f":"H8*F8","v":{"$error":"#DIV/0!"}},{"$error":"#DIV/0!"}]
["LA.7","Se ha controlado la longitud de página",null,null,null,"","0",{"$f":"G9/'Cálculo de % usabilidad'!F5","v":{"$error":"#DIV/0!"}},{"$f":"H9*F9","v":{"$error":"#DIV/0!"}},{"$error":"#DIV/0!"}]
["LA.8","La versión impresa de la página es correcta",null,null,null,{"$f":"txtNum(C10)","v":""},{"$f":"txtRel(D10)","v":"0"},{"$f":"G10/'Cálculo de % usabilidad'!F5","v":{"$error":"#DIV/0!"}},{"$f":"H10*F10","v":{"$error":"#DIV/0!"}},{"$error":"#DIV/0!"}]
["LA.9","El texto de la página se lee sin dificultad",null,null,null,"","0",{"$f":"G11/'Cálculo de % usabilidad'!F5","v":{"$error":"#DIV/0!"}},{"$f":"H11*F11","v":{"$error":"#DIV/0!"}},{"$error":"#DIV/0!"}]
["LA.10","Se ha evitado el texto parpadeante / deslizante",null,null,null,"","0",{"$f":"G12/'Cálculo de % usabilidad'!F5","v":{"$error":"#DIV/0!"}},{"$error":"#DIV/0!"},{"$error":"#DIV/0!"},"Núm.elementos evaluados",{"$f":"10-(COUNTIF(C3:C12,\"NA\")+COUNTBLANK(C3:C12))","v":0}," (no contabiliza ni los vacíos ni los NA)"]
[null,null,null,null,null,null,{"$f":"G3+G4+G5+G6+G7+G8+G9+G10+G11+G12","v":0}]
["Instrucciones",null,"Leyenda Valor"]
["1. Evalue cada criterio y rellene la columna \"Valor\" según la leyenda",null,0,"No se cumple en absoluto",null,"NEP","No se cumple en los enlaces principales"]
["2. Según el tipo de sitio indicado en la pestaña \"Datos del sitio\" rellene la columna \"Relevancia\"",null,10,"Se cumple totalmente",null,"NPP ","No se cumple en la página principal"]
["Debe seleccionar el valor según la tabla que se incluye más abajo (la excel no lo hace todavía automáticamente)",null,"NA","Criterio no aplicable en el sitio",null,"NPI","No se cumple en alguna página interior"]
["3. Puede indicar los comentarios que desee o bien su referencia a un documento Word",null,"NTS ","No se cumple en todo el sitio",null,"S ","Se cumple el criterio"]
["4. No modifique las columnas sombreadas en gris, son rellenados automáticamente para el cálculo final"]
[]
["*Relevancia"]
["Se aplica el tipo de sitio definido en Datos del sitio según esta tabla (debería programarse para que el valor lo pusiera excel automáticamente)"]

{"sheet":"6, Entendibilidad y Faciliddad ","index":6,"n_rows":19,"n_cols":13,"rows_kept":19,"cut":false,"hidden":false,"merged":[]}
["CRITERIOS DEL \"ENTENDIBILIDAD Y FACILIDAD EN LA INTERACCIÓN\": Elementos relacionados con la adecuación y calidad de los contenidos textuales, iconos y controles de la interfaz."]
["Código","Criterio","Valor","Relevancia *","Comentarios","Valor interno(vc)","Valor interno de relevancia (rc)","Factor de corrección (fc)","Valor parcial","Valor parcial 2"]
["EF.1","Se emplea un lenguaje claro y conciso",null,null,null,{"$f":"txtNum(C3)","v":""},{"$f":"txtRel(D3)","v":"0"},{"$f":"G3/'Cálculo de % usabilidad'!F5","v":{"$error":"#DIV/0!"}},{"$f":"H3*F3","v":{"$error":"#DIV/0!"}},{"$f":"H3*10","v":{"$error":"#DIV/0!"}}]
["EF.2","Lenguaje amigable, familiar y cercano",null,null,null,{"$f":"txtNum(C4)","v":""},"0",{"$f":"G4/'Cálculo de % usabilidad'!F5","v":{"$error":"#DIV/0!"}},{"$f":"H4*F4","v":{"$error":"#DIV/0!"}},{"$f":"H4*10","v":{"$error":"#DIV/0!"}}]
["EF.3","Cada párrafo expresa una idea",null,null,null,"","0",{"$f":"G5/'Cálculo de % usabilidad'!F5","v":{"$error":"#DIV/0!"}},{"$error":"#DIV/0!"},{"$error":"#DIV/0!"}]
["EF.4","Uso consistente de los controles de la interfaz",null,null,null,"","0",{"$f":"G6/'Cálculo de % usabilidad'!F5","v":{"$error":"#DIV/0!"}},{"$error":"#DIV/0!"},{"$error":"#DIV/0!"}]
["EF.5","Metáforas visibles reconocibles y comprensibles por cualquier\nusuario (ej.: iconos)",null,null,null,"","0",{"$f":"G7/'Cálculo de % usabilidad'!F5","v":{"$error":"#DIV/0!"}},{"$error":"#DIV/0!"},{"$error":"#DIV/0!"}]
["EF.6","Si se usan menús desplegables, orden coherente o alfabético",null,null,null,"","0",{"$f":"G8/'Cálculo de % usabilidad'!F5","v":{"$error":"#DIV/0!"}},{"$f":"H8*F8","v":{"$error":"#DIV/0!"}},{"$error":"#DIV/0!"}]
["EF.7","Si el usuario tiene que rellenar un campo, las opciones disponibles\nse pueden seleccionar en vez de tener que escribirlas",null,null,null,"","0",{"$f":"G9/'Cálculo de % usabilidad'!F5","v":{"$error":"#DIV/0!"}},{"$f":"H9*F9","v":{"$error":"#DIV/0!"}},{"$error":"#DIV/0!"},"Núm.elementos evaluados",{"$f":"7-(COUNTIF(C3:C9,\"NA\")+COUNTBLANK(C3:C9))","v":0}," (no contabiliza ni los vacíos ni los NA)"]
[null,null,null,null,null,null,{"$f":"G3+G4+G5+G6+G7+G8+G9","v":0}]
["Instrucciones",null,"Leyenda Valor"]
["1. Evalue cada criterio y rellene la columna \"Valor\" según la leyenda",null,0,"No se cumple en absoluto",null,"NEP","No se cumple en los enlaces principales"]
["2. Según el tipo de sitio indicado en la pestaña \"Datos del sitio\" rellene la columna \"Relevancia\"",null,10,"Se cumple totalmente",null,"NPP ","No se cumple en la página principal"]
["Debe seleccionar el valor según la tabla que se incluye más abajo (la excel no lo hace todavía automáticamente)",null,"NA","Criterio no aplicable en el sitio",null,"NPI","No se cumple en alguna página interior"]
["3. Puede indicar los comentarios que desee o bien su referencia a un documento Word",null,"NTS ","No se cumple en todo el sitio",null,"S ","Se cumple el criterio"]
["4. No modifique las columnas sombreadas en gris, son rellenados automáticamente para el cálculo final"]
[]
["*Relevancia"]
["Se aplica el tipo de sitio definido en Datos del sitio según esta tabla (debería programarse para que el valor lo pusiera excel automáticamente)"]

{"sheet":"7, Control y Retoalimentación","index":7,"n_rows":22,"n_cols":13,"rows_kept":22,"cut":false,"hidden":false,"merged":[[0,0,0,10]]}
["CRITERIOS DEL \"CONTROL Y RETORALIMENTACIÓN\": Elementos relacionados con libertad del usuario en la navegación y la información proporcionada al mismo en el proceso de interacción con el sitio."]
["Código","Criterio","Valor","Relevancia *","Comentarios","Valor interno(vc)","Valor interno de relevancia (rc)","Factor de corrección (fc)","Valor parcial","Valor parcial 2"]
["CR.1","El usuario tiene todo el control sobre la interfaz",null,null,null,{"$f":"txtNum(C3)","v":""},{"$f":"txtRel(D3)","v":"0"},{"$f":"G3/'Cálculo de % usabilidad'!F5","v":{"$error":"#DIV/0!"}},{"$f":"H3*F3","v":{"$error":"#DIV/0!"}},{"$f":"H3*10","v":{"$error":"#DIV/0!"}}]
["CR.2","Se informa al usuario acerca de lo que está pasando",null,null,null,{"$f":"txtNum(C4)","v":""},"0",{"$f":"G4/'Cálculo de % usabilidad'!F5","v":{"$error":"#DIV/0!"}},{"$f":"H4*F4","v":{"$error":"#DIV/0!"}},{"$f":"H4*10","v":{"$error":"#DIV/0!"}}]
["CR.3","Se informa al usuario de lo que ha pasado",null,null,null,"","0",{"$f":"G5/'Cálculo de % usabilidad'!F5","v":{"$error":"#DIV/0!"}},{"$error":"#DIV/0!"},{"$error":"#DIV/0!"}]
["CR.4","Existen sistemas de validación antes de que el usuario envíe información para tratar de evitar errores",null,null,null,"","0",{"$f":"G6/'Cálculo de % usabilidad'!F5","v":{"$error":"#DIV/0!"}},{"$error":"#DIV/0!"},{"$error":"#DIV/0!"}]
["CR.5","Cuando se produce un error, se informa de forma clara y no alarmista al usuario de lo ocurrido y de cómo solucionar el problema",null,null,null,"","0",{"$f":"G7/'Cálculo de % usabilidad'!F5","v":{"$error":"#DIV/0!"}},{"$error":"#DIV/0!"},{"$error":"#DIV/0!"}]
["CR.6","Se ha controlado el tiempo de respuesta",null,null,null,"","0",{"$f":"G8/'Cálculo de % usabilidad'!F5","v":{"$error":"#DIV/0!"}},{"$f":"H8*F8","v":{"$error":"#DIV/0!"}},{"$error":"#DIV/0!"}]
["CR.7","Se ha evitado que las ventanas del sitio anulen o se superpongan a la del navegador",null,null,null,"","0",{"$f":"G9/'Cálculo de % usabilidad'!F5","v":{"$error":"#DIV/0!"}},{"$f":"H9*F9","v":{"$error":"#DIV/0!"}},{"$error":"#DIV/0!"}]
["CR.8","Se ha evitado la proliferación de ventanas en la pantalla del usuario",null,null,null,"","0",{"$f":"G10/'Cálculo de % usabilidad'!F5","v":{"$error":"#DIV/0!"}},{"$error":"#DIV/0!"},{"$error":"#DIV/0!"}]
["CR.9","Se ha evitado la descarga por parte del usuario de plugins adicionales",null,null,null,"","0",{"$f":"G11/'Cálculo de % usabilidad'!F5","v":{"$error":"#DIV/0!"}},{"$error":"#DIV/0!"},{"$error":"#DIV/0!"}]
["CR.10","Si existen tareas de varios pasos, se indica al usuario en cual está y cuantos faltan para completar la tarea",null,null,null,"","0",{"$f":"G12/'Cálculo de % usabilidad'!F5","v":{"$error":"#DIV/0!"}},{"$error":"#DIV/0!"},{"$error":"#DIV/0!"},"Núm.elementos evaluados",{"$f":"10-(COUNTIF(C3:C12,\"NA\")+COUNTBLANK(C3:C12))","v":0}," (no contabiliza ni los vacíos ni los NA)"]
[null,null,null,null,null,null,{"$f":"G3+G4+G5+G6+G7+G8+G9+G10+G11+G12","v":0}]
["Instrucciones",null,"Leyenda Valor"]
["1. Evalue cada criterio y rellene la columna \"Valor\" según la leyenda",null,0,"No se cumple en absoluto",null,"NEP","No se cumple en los enlaces principales"]
["2. Según el tipo de sitio indicado en la pestaña \"Datos del sitio\" rellene la columna \"Relevancia\"",null,10,"Se cumple totalmente",null,"NPP ","No se cumple en la página principal"]
["Debe seleccionar el valor según la tabla que se incluye más abajo (la excel no lo hace todavía automáticamente)",null,"NA","Criterio no aplicable en el sitio",null,"NPI","No se cumple en alguna página interior"]
["3. Puede indicar los comentarios que desee o bien su referencia a un documento Word",null,"NTS ","No se cumple en todo el sitio",null,"S ","Se cumple el criterio"]
["4. No modifique las columnas sombreadas en gris, son rellenados automáticamente para el cálculo final"]
[]
["*Relevancia"]
["Se aplica el tipo de sitio definido en Datos del sitio según esta tabla (debería programarse para que el valor lo pusiera excel automáticamente)"]

{"sheet":"8, Elementos multimedia","index":8,"n_rows":18,"n_cols":13,"rows_kept":18,"cut":false,"hidden":false,"merged":[]}
["CRITERIOS DEL \"ELEMENTOS MULTIMEDIA\": Elementos relacionados con el grado de adecuación de los contenidos multimedia al sitio web."]
["Código","Criterio","Valor","Relevancia *","Comentarios","Valor interno(vc)","Valor interno de relevancia (rc)","Factor de corrección (fc)","Valor parcial","Valor parcial 2"]
["EM.1","Fotografías bien recortadas",null,null,null,{"$f":"txtNum(C3)","v":""},{"$f":"txtRel(D3)","v":"0"},{"$f":"G3/'Cálculo de % usabilidad'!F5","v":{"$error":"#DIV/0!"}},{"$f":"H3*F3","v":{"$error":"#DIV/0!"}},{"$f":"H3*10","v":{"$error":"#DIV/0!"}}]
["EM.2","Fotografías comprensibles",null,null,null,{"$f":"txtNum(C4)","v":""},"0",{"$f":"G4/'Cálculo de % usabilidad'!F5","v":{"$error":"#DIV/0!"}},{"$f":"H4*F4","v":{"$error":"#DIV/0!"}},{"$f":"H4*10","v":{"$error":"#DIV/0!"}}]
["EM.3","Fotografías con correcta resolución",null,null,null,"","0",{"$f":"G5/'Cálculo de % usabilidad'!F5","v":{"$error":"#DIV/0!"}},{"$error":"#DIV/0!"},{"$error":"#DIV/0!"}]
["EM.4","El uso de imágenes o animaciones proporciona algún tipo de valor añadido",null,null,null,"","0",{"$f":"G6/'Cálculo de % usabilidad'!F5","v":{"$error":"#DIV/0!"}},{"$error":"#DIV/0!"},{"$error":"#DIV/0!"}]
["EM.5","Se ha evitado el uso de animaciones cíclicas",null,null,null,"","0",{"$f":"G7/'Cálculo de % usabilidad'!F5","v":{"$error":"#DIV/0!"}},{"$error":"#DIV/0!"},{"$error":"#DIV/0!"}]
["EM.6","El uso de sonido proporciona algún tipo de valor añadido",null,null,null,"","0",{"$f":"G8/'Cálculo de % usabilidad'!F5","v":{"$error":"#DIV/0!"}},{"$error":"#DIV/0!"},{"$error":"#DIV/0!"},"Núm.elementos evaluados",{"$f":"6-(COUNTIF(C3:C8,\"NA\")+COUNTBLANK(C3:C8))","v":0}," (no contabiliza ni los vacíos ni los NA)"]
[null,null,null,null,null,null,{"$f":"G3+G4+G5+G6+G7+G8","v":0}]
["Instrucciones",null,"Leyenda Valor"]
["1. Evalue cada criterio y rellene la columna \"Valor\" según la leyenda",null,0,"No se cumple en absoluto",null,"NEP","No se cumple en los enlaces principales"]
["2. Según el tipo de sitio indicado en la pestaña \"Datos del sitio\" rellene la columna \"Relevancia\"",null,10,"Se cumple totalmente",null,"NPP ","No se cumple en la página principal"]
["Debe seleccionar el valor según la tabla que se incluye más abajo (la excel no lo hace todavía automáticamente)",null,"NA","Criterio no aplicable en el sitio",null,"NPI","No se cumple en alguna página interior"]
["3. Puede indicar los comentarios que desee o bien su referencia a un documento Word",null,"NTS ","No se cumple en todo el sitio",null,"S ","Se cumple el criterio"]
["4. No modifique las columnas sombreadas en gris, son rellenados automáticamente para el cálculo final"]
[]
["*Relevancia"]
["Se aplica el tipo de sitio definido en Datos del sitio según esta tabla (debería programarse para que el valor lo pusiera excel automáticamente)"]

{"sheet":"9, Búsqueda","index":9,"n_rows":20,"n_cols":13,"rows_kept":20,"cut":false,"hidden":false,"merged":[[0,0,0,6]]}
["CRITERIOS DEL \"BÚSQUEDA\": Elementos relacionados con el buscador implementado en el sitio web."]
["Código","Criterio","Valor","Relevancia *","Comentarios","Valor interno(vc)","Valor interno de relevancia (rc)","Factor de corrección (fc)","Valor parcial","Valor parcial 2"]
["BU.1","Si es necesaria, se encuentra accesible desde todas las páginas del sitio",null,null,null,{"$f":"txtNum(C3)","v":""},{"$f":"txtRel(D3)","v":"0"},{"$f":"G3/'Cálculo de % usabilidad'!F5","v":{"$error":"#DIV/0!"}},{"$f":"H3*F3","v":{"$error":"#DIV/0!"}},{"$f":"H3*10","v":{"$error":"#DIV/0!"}}]
["BU.2","Es fácilmente reconocible como tal",null,null,null,{"$f":"txtNum(C4)","v":""},"0",{"$f":"G4/'Cálculo de % usabilidad'!F5","v":{"$error":"#DIV/0!"}},{"$f":"H4*F4","v":{"$error":"#DIV/0!"}},{"$f":"H4*10","v":{"$error":"#DIV/0!"}}]
["BU.3","Se encuentra fácilmente accesible",null,null,null,"","0",{"$f":"G5/'Cálculo de % usabilidad'!F5","v":{"$error":"#DIV/0!"}},{"$error":"#DIV/0!"},{"$error":"#DIV/0!"}]
["BU.4","La caja de texto es lo suficientemente ancha",null,null,null,"","0",{"$f":"G6/'Cálculo de % usabilidad'!F5","v":{"$error":"#DIV/0!"}},{"$error":"#DIV/0!"},{"$error":"#DIV/0!"}]
["BU.5","Sistema de búsqueda simple y claro",null,null,null,"","0",{"$f":"G7/'Cálculo de % usabilidad'!F5","v":{"$error":"#DIV/0!"}},{"$error":"#DIV/0!"},{"$error":"#DIV/0!"}]
["BU.6","Permite la búsqueda avanzada",null,null,null,"","0",{"$f":"G8/'Cálculo de % usabilidad'!F5","v":{"$error":"#DIV/0!"}},{"$error":"#DIV/0!"},{"$error":"#DIV/0!"}]
["BU.7","Muestra los resultados de la búsqueda de forma comprensible para el usuario",null,null,null,"","0",{"$f":"G9/'Cálculo de % usabilidad'!F5","v":{"$error":"#DIV/0!"}},{"$error":"#DIV/0!"},{"$error":"#DIV/0!"}]
["BU.8","Asiste al usuario en caso de no poder ofrecer resultados para una consultada dada",null,null,null,"","0",{"$f":"G10/'Cálculo de % usabilidad'!F5","v":{"$error":"#DIV/0!"}},{"$error":"#DIV/0!"},{"$error":"#DIV/0!"},"Núm.elementos evaluados",{"$f":"8-(COUNTIF(C3:C10,\"NA\")+COUNTBLANK(C3:C10))","v":0}," (no contabiliza ni los vacíos ni los NA)"]
[null,null,null,null,null,null,{"$f":"G3+G4+G5+G6+G7+G8+G9+G10","v":0}]
["Instrucciones",null,"Leyenda Valor"]
["1. Evalue cada criterio y rellene la columna \"Valor\" según la leyenda",null,0,"No se cumple en absoluto",null,"NEP","No se cumple en los enlaces principales"]
["2. Según el tipo de sitio indicado en la pestaña \"Datos del sitio\" rellene la columna \"Relevancia\"",null,10,"Se cumple totalmente",null,"NPP ","No se cumple en la página principal"]
["Debe seleccionar el valor según la tabla que se incluye más abajo (la excel no lo hace todavía automáticamente)",null,"NA","Criterio no aplicable en el sitio",null,"NPI","No se cumple en alguna página interior"]
["3. Puede indicar los comentarios que desee o bien su referencia a un documento Word",null,"NTS ","No se cumple en todo el sitio",null,"S ","Se cumple el criterio"]
["4. No modifique las columnas sombreadas en gris, son rellenados automáticamente para el cálculo final"]
[]
["*Relevancia"]
["Se aplica el tipo de sitio definido en Datos del sitio según esta tabla (debería programarse para que el valor lo pusiera excel automáticamente)"]

{"sheet":"10, Ayuda","index":10,"n_rows":17,"n_cols":13,"rows_kept":17,"cut":false,"hidden":false,"merged":[]}
["CRITERIOS DEL \"AYUDA\": Elementos relacionados con la ayuda ofrecida al usuario durante la navegación por el sitio."]
["Código","Criterio","Valor","Relevancia *","Comentarios","Valor interno(vc)","Valor interno de relevancia (rc)","Factor de corrección (fc)","Valor parcial","Valor parcial 2"]
["AY.1","El enlace a la sección de Ayuda, colocado en una zona visible y\nestándar",null,null,null,{"$f":"txtNum(C3)","v":""},{"$f":"txtRel(D3)","v":"0"},{"$f":"G3/'Cálculo de % usabilidad'!F5","v":{"$error":"#DIV/0!"}},{"$f":"H3*F3","v":{"$error":"#DIV/0!"}},{"$f":"H3*10","v":{"$error":"#DIV/0!"}}]
["AY.2","Fácil acceso y retorno al/del sistema de ayuda",null,null,null,{"$f":"txtNum(C4)","v":""},{"$f":"txtRel(D4)","v":"0"},{"$f":"G4/'Cálculo de % usabilidad'!F5","v":{"$error":"#DIV/0!"}},{"$f":"H4*F4","v":{"$error":"#DIV/0!"}},{"$f":"H4*10","v":{"$error":"#DIV/0!"}}]
["AY.3","Se ofrece ayuda contextual en tareas complejas",null,null,null,"",{"$f":"txtRel(D5)","v":"0"},{"$f":"G5/'Cálculo de % usabilidad'!F5","v":{"$error":"#DIV/0!"}},{"$error":"#DIV/0!"},{"$error":"#DIV/0!"}]
["AY.4","FAQs (si la hay), correcta la elección como la redacción de las\npreguntas",null,null,null,"",{"$f":"txtRel(D6)","v":"0"},{"$f":"G6/'Cálculo de % usabilidad'!F5","v":{"$error":"#DIV/0!"}},{"$error":"#DIV/0!"},{"$error":"#DIV/0!"}]
["AY.5","FAQs (si la hay), correcta la redacción de las respuestas",null,null,null,"",{"$f":"txtRel(D7)","v":"0"},{"$f":"G7/'Cálculo de % usabilidad'!F5","v":{"$error":"#DIV/0!"}},{"$error":"#DIV/0!"},{"$error":"#DIV/0!"},"Núm.elementos evaluados",{"$f":"5-(COUNTIF(C3:C7,\"NA\")+COUNTBLANK(C3:C7))","v":0}," (no contabiliza ni los vacíos ni los NA)"]
[null,null,null,null,null,null,{"$f":"G3+G4+G5+G6+G7","v":0}]
["Instrucciones",null,"Leyenda Valor"]
["1. Evalue cada criterio y rellene la columna \"Valor\" según la leyenda",null,0,"No se cumple en absoluto",null,"NEP","No se cumple en los enlaces principales"]
["2. Según el tipo de sitio indicado en la pestaña \"Datos del sitio\" rellene la columna \"Relevancia\"",null,10,"Se cumple totalmente",null,"NPP ","No se cumple en la página principal"]
["Debe seleccionar el valor según la tabla que se incluye más abajo (la excel no lo hace todavía automáticamente)",null,"NA","Criterio no aplicable en el sitio",null,"NPI","No se cumple en alguna página interior"]
["3. Puede indicar los comentarios que desee o bien su referencia a un documento Word",null,"NTS ","No se cumple en todo el sitio",null,"S ","Se cumple el criterio"]
["4. No modifique las columnas sombreadas en gris, son rellenados automáticamente para el cálculo final"]
[]
["*Relevancia"]
["Se aplica el tipo de sitio definido en Datos del sitio según esta tabla (debería programarse para que el valor lo pusiera excel automáticamente)"]

{"sheet":"Cálculo de % usabilidad","index":11,"n_rows":17,"n_cols":7,"rows_kept":17,"cut":false,"hidden":false,"merged":[[4,3,4,4],[3,3,3,4]]}
[]
["CÁLCULO DEL PORCENTAJE DE USABILIDAD "]
[null,null,null,"Datos para el cálculo:"]
["Porcentaje de usabilidad*",{"$f":"(F6/F7)*100","v":{"$error":"#DIV/0!"}},null,"Nº de criterios evaluados",null,{"$f":"SUM('1, Aspectos generales'!L12,'2, Identidad e Información'!L9,'3, Estructura y navegación'!L16,'4, Rotulado'!L8,'5, Layout de la página'!L12,'6, Entendibilidad y Faciliddad '!L9,'7, Control y Retoalimentación'!L12,'8, Elementos multimedia'!L8,'9, Búsqueda'!L10,'10, Ayuda'!L7)","v":0}]
[null,null,null,"El sumatorio de los valores de relevancia de los criterios evaluados es:",null,{"$f":"SUM('1, Aspectos generales'!G13,'2, Identidad e Información'!G10,'3, Estructura y navegación'!G17,'4, Rotulado'!G9,'5, Layout de la página'!G13,'6, Entendibilidad y Faciliddad '!G10,'7, Control y Retoalimentación'!G13,'8, Elementos multimedia'!G9,'9, Búsqueda'!G11,'10, Ayuda'!G8)","v":0},"*A los NA no se les aplica relevancia"]
[null,null,null,"Sumatorio de la columna i de cada criterio",null,{"$f":"SUM('1, Aspectos generales'!I3:I12,'2, Identidad e Información'!I3:I9,'3, Estructura y navegación'!I3:I16,'4, Rotulado'!I3:I8,'5, Layout de la página'!I3:I12,'6, Entendibilidad y Faciliddad '!I3:I9,'7, Control y Retoalimentación'!I3:I12,'8, Elementos multimedia'!I3:I8,'9, Búsqueda'!I3:I10,'10, Ayuda'!I3:I7)","v":{"$error":"#DIV/0!"}},"*Los NA no se tienen en cuenta"]
[null,null,null,"Sumatorio de la columna h *10 de cada criterio",null,{"$f":"SUM('1, Aspectos generales'!J3:J12,'2, Identidad e Información'!J3:J9,'3, Estructura y navegación'!J3:J16,'4, Rotulado'!J3:J8,'5, Layout de la página'!J3:J12,'7, Control y Retoalimentación'!J3:J12,'8, Elementos multimedia'!J3:J8,'6, Entendibilidad y Faciliddad '!J3:J9,'9, Búsqueda'!J3:J10,'10, Ayuda'!J3:J7)","v":{"$error":"#DIV/0!"}},"*Los NA no se tienen en cuenta"]
["Se obtiene de aplicar la siguiente fórmula:"]
[]
[]
[null,"nce: número de criterios evaluados. Será como máximo los 83. Los NA no contabilizan. Se toma de la celda E14 de esta hoja (NumEval)"]
[null,"vc: valor de evaluación de un criterio (campo de la columna f \"Valor interno\" de cada criterio en cada hoja)"]
[null,"fc: Factor de corrección aplicado al criterio evaluado. "]
[null,"El valor del factor de corrección de cada uno de los criterios evaluados se obtiene de la siguiente manera:"]
[]
[]
[null,null,null,"rc : Valor de relevancia que corresponde a un criterio (campo de la columna g \"Valor interno de Relevancia\")"]

{"sheet":"Valores","index":12,"n_rows":20,"n_cols":10,"rows_kept":20,"cut":false,"hidden":false,"merged":[]}
[]
[]
["Datos internos",null,"No modificar, son los datos de las combos"]
[]
[0,null,"NTS",null,"Administración Pública/Institucional",null,null,null,null,"CR"]
[1,null,"NEP",null,"Banca electrónica",null,null,null,null,"MA"]
[2,null,"NPP",null,"Blog",null,null,null,null,"ME"]
[3,null,"NPI",null,"Comercio electrónico",null,null,null,null,"MO"]
[4,null,"S",null,"Comunicación/Noticias"]
[5,null,"NA",null,"Corporativo/Empresas"]
[6,null,null,null,"Descargas"]
[7,null,null,null,"Educativo/Formativo"]
[8,null,null,null,"Entornos colaborativos/Wikis"]
[9,null,null,null,"Foros/Chat"]
[10,null,null,null,"Ocio/Entretenimiento"]
["NA",null,null,null,"Personal"]
[null,null,null,null,"Portal de Servicios"]
[null,null,null,null,"Servicios interactivos basados en imágenes"]
[null,null,null,null,"Servicios interactivos no basados en imágenes"]
[null,null,null,null,"Webmail/Correo"]